[Event "7th Porticcio Open 2022"]
[Site "Porticcio"]
[Date "2022.07.06"]
[Round "7.1"]
[White "Maurizzi, Marc Andria"]
[Black "Clarke, Brandon G I"]
[Result "1/2-1/2"]
[ECO "B52"]
[WhiteElo "2506"]
[BlackElo "2486"]
[Annotator "TA"]
[PlyCount "74"]
[EventDate "2022.07.02"]
[EventType "swiss"]
[EventCountry "FRA"]
[SourceTitle "playchess.com"]
[Source "ChessBase"]
[SourceQuality "1"]
[TimeControl "5400+30"]

{[%evp 11,74,7,19,0,0,0,-6,0,25,-15,-8,-17,-3,-8,-8,-15,-9,-34,8,4,4,8,4,0,13,-9,0,2,6,8,12,0,0,-7,0,0,9,9,9,9,11,17,12,0,0,0,0,0,0,0,0,0,0,0,0,0,0,0,0,0,0,0,0,0,0]} 1. e4 {[%emt 0:00:07]} c5 {[%emt 0:00:35]} 2. Nf3 {[%emt 0:00:09]} d6 {[%emt 0:00:07]} 3. Bb5+ {[%emt 0:00:30]} Bd7 {[%emt 0:00:21]} 4. Bxd7+ {[%emt 0:00:41]} Qxd7 {[%emt 0:00:02]} 5. O-O {[%emt 0:00:08]} Nc6 {[%emt 0:00:12]} 6. c3 {[%emt 0:00:17]} d5 {[%emt 0:00:09]} 7. e5 {[%emt 0:04:24] B52: Sicilian: Moscow Variation with 3...Bd7.} e6 {[%emt 0:00:04]} 8. d4 {[%emt 0:00:04]} Rc8 {[%emt 0:00:09] [#]} 9. a3 $146 {[%emt 0:02:36]} ({Predecessor:} 9. Bf4 Nge7 10. Nbd2 Nf5 11. Nb3 cxd4 12. Nbxd4 Nfxd4 13. Nxd4 Bc5 14. Nb3 Bb6 15. Qg4 {½-½ (41) Balabayeva,K (2116)-Nguyen,P (2411) Belgrade 2021}) 9... Nge7 {[%emt 0:04:06]} 10. Re1 {[%emt 0:03:02]} cxd4 {[%emt 0:05:01]} 11. cxd4 {[%emt 0:00:49]} Nf5 {[%emt 0:00:19]} 12. Nc3 {[%emt 0:02:53][%cal Bb1c3,Bc3e2,Be2g3,Bg3h5][%mdl 32]} Be7 {[%emt 0:02:52]} 13. Ne2 {[%emt 0:08:17]} O-O {[%emt 0:03:01]} 14. Ng3 {[%emt 0:01:22]} Nh4 {[%emt 0:03:10]} 15. Nxh4 {[%emt 0:10:09] The position is equal.} Bxh4 {[%emt 0:03:50]} 16. Nh5 {[%emt 0:02:40] [#] Black must now prevent Qg4.} f5 {[%emt 0:02:25] Against Qg4} 17. exf6 {[%emt 0:07:02]} Bxf6 {[%emt 0:00:18]} 18. Be3 {[%emt 0:00:35]} Qf7 {[%emt 0:07:28]} 19. Nxf6+ {[%emt 0:03:44]} Qxf6 {[%emt 0:02:13]} 20. Rc1 {[%emt 0:01:19]} Na5 {[%emt 0:13:40]} 21. Rxc8 {[%emt 0:15:37]} Rxc8 {[%emt 0:00:02]} 22. Qd3 {[%emt 0:02:03]} a6 {[%emt 0:04:15]} 23. f3 {[%emt 0:03:08]} Qg6 {[%emt 0:01:20]} 24. Qxg6 {[%emt 0:05:46]} hxg6 $11 {[%emt 0:00:03][%mdl 4096] Endgame KRB-KRN} 25. Rc1 {[%emt 0:04:18]} Rc4 {[%emt 0:00:44]} 26. Kf2 {[%emt 0:01:49]} Kf7 {[%emt 0:05:01]} 27. Ke2 {[%emt 0:01:55]} Nb3 {[%emt 0:04:11][%csl LRc1,LRd4]} 28. Rc3 {[%emt 0:06:10]} Rxc3 {[%emt 0:00:58]} 29. bxc3 {[%emt 0:00:02] KB-KN} Na5 {[%emt 0:00:32]} 30. h4 {[%emt 0:00:40]} Nc4 {[%emt 0:00:16]} 31. Bc1 {[%emt 0:00:24]} a5 {[%emt 0:00:51]} 32. g4 {[%emt 0:00:31]} a4 {[%emt 0:00:00]} 33. Kd3 {[%emt 0:01:33]} b5 34. Ke2 {[%emt 0:00:16]} Kg8 {[%emt 0:00:09]} 35. Kd3 {[%emt 0:00:05]} Kf7 {[%emt 0:00:09]} 36. Ke2 {[%emt 0:00:03]} Kg8 {[%emt 0:00:10]} 37. Kd3 {[%emt 0:00:04]} Kf7 {[%emt 0:00:07] Not much happened in this game.  Weighted Error Value: White=0.06 (flawless) /Black=0.04 (flawless)} 1/2-1/2

[Event "7th Porticcio Open 2022"]
[Site "Porticcio"]
[Date "2022.07.06"]
[Round "7.2"]
[White "Suarez Uriel, Adrian"]
[Black "Karttunen, Mika"]
[Result "1/2-1/2"]
[ECO "C50"]
[WhiteElo "2386"]
[BlackElo "2484"]
[Annotator "TA"]
[PlyCount "262"]
[EventDate "2022.07.02"]
[EventType "swiss"]
[EventCountry "FRA"]
[SourceTitle "playchess.com"]
[Source "ChessBase"]
[SourceQuality "1"]
[TimeControl "5400+30"]

1. e4 {[%emt 0:00:07]} e5 {[%emt 0:00:05]} 2. Nf3 {[%emt 0:00:04]} Nc6 {[%emt 0:00:07]} 3. Bc4 {[%emt 0:00:05]} Nf6 {[%emt 0:00:11]} 4. d3 {[%emt 0:00:05]} Bc5 {[%emt 0:00:14]} 5. O-O {[%emt 0:00:15]} d6 {[%emt 0:02:23]} 6. c3 {[%emt 0:00:07]} a6 {[%emt 0:00:54]} 7. a4 {[%emt 0:00:05]} Ba7 {[%emt 0:00:32]} 8. Nbd2 {[%emt 0:00:23]} O-O {[%emt 0:00:16]} 9. h3 {[%emt 0:00:04]} h6 {[%emt 0:00:15]} 10. Re1 {[%emt 0:00:04]} Be6 {[%emt 0:01:22]} 11. Bxe6 {[%emt 0:00:05]} fxe6 {[%emt 0:00:06]} 12. b4 {[%emt 0:00:04]} Nh5 {[%emt 0:06:56]} 13. Nf1 {[%emt 0:02:30]} Qf6 {[%emt 0:02:15]} 14. Ra2 {[%emt 0:01:05]} Nf4 {[%emt 0:02:08]} 15. Kh2 {[%emt 0:08:57]} a5 {[%emt 0:23:35]} 16. b5 {[%emt 0:00:53]} Nb8 {[%emt 0:00:44]} 17. Be3 {[%emt 0:04:02]} Nd7 {[%emt 0:02:25]} 18. Bxa7 {[%emt 0:03:40]} Rxa7 {[%emt 0:00:04]} 19. Ne3 {[%emt 0:28:09]} Nc5 {[%emt 0:11:51]} 20. Rd2 {[%emt 0:00:29]} Raa8 {[%emt 0:03:04]} 21. Nc4 {[%emt 0:02:43]} Qg6 {[%emt 0:07:22]} 22. g3 {[%emt 0:00:19]} Nh5 {[%emt 0:00:32]} 23. Re3 {[%emt 0:10:34]} b6 {[%emt 0:01:47]} 24. Nh4 {[%emt 0:02:50]} Qg5 {[%emt 0:03:02]} 25. d4 {[%emt 0:07:36]} exd4 {[%emt 0:04:45]} 26. cxd4 {[%emt 0:00:34]} Nd7 {[%emt 0:09:54]} 27. Ng2 {[%emt 0:02:20]} Nhf6 {[%emt 0:02:05]} 28. Nf4 {[%emt 0:03:03]} Rae8 {[%emt 0:00:16]} 29. Qb3 {[%emt 0:04:25]} Nh5 {[%emt 0:10:09]} 30. Nxd6 {[%emt 0:04:50]} cxd6 {[%emt 0:00:06]} 31. Nxe6 {[%emt 0:00:03]} Rxe6 {[%emt 0:02:48]} 32. Qxe6+ {[%emt 0:00:02]} Rf7 {[%emt 0:01:22]} 33. Rc2 {[%emt 0:04:29]} (33. Qxd6 $6 Rxf2+ 34. Rxf2 Qxe3 $18) 33... Qf6 {[%emt 0:01:23]} 34. Qxf6 {[%emt 0:00:50]} (34. Qd5 g6 35. Ree2 Ng7 36. Rc8+ Kh7 $18) 34... gxf6 {[%emt 0:01:35]} 35. Rc6 {[%emt 0:00:10]} d5 {[%emt 0:00:37]} 36. e5 {[%emt 0:03:04]} ({Don't take} 36. exd5 f5 37. Rf3 (37. Rxh6 Nhf6 $18) 37... Kg7 $18) (36. g4 $142 Ng7 37. exd5) 36... fxe5 $18 {[%emt 0:00:13]} 37. dxe5 {[%emt 0:00:01]} Rxf2+ {[%emt 0:00:33]} 38. Kg1 {[%emt 0:00:01]} Rf8 {[%emt 0:00:41]} 39. e6 $1 {[%emt 0:02:59]} ({Don't do} 39. Rxh6 $6 Ng7 $16) 39... Nc5 {[%emt 0:00:04]} 40. e7 {[%emt 0:00:09]} Re8 {[%emt 0:00:02]} 41. Rxb6 {[%emt 0:00:11]} ({White should play} 41. Rxh6 $18 Ng7 42. Rxb6) 41... d4 $2 {[%emt 0:00:30][%mdl 8192] [#]} (41... Kf7 $16) 42. Re1 {[%emt 0:01:17]} (42. Rb8 $142 $3 {[%mdl 512]} Kf7 (42... Rxb8 43. e8=Q+) 43. Rf3+ Kxe7 44. Rxe8+ Kxe8 45. Rf5 Nxa4 46. Rxh5) 42... d3 {[%emt 0:00:27]} (42... Kf7 {keeps fighting.}) 43. Rxh6 $18 {[%emt 0:01:01]} Ng7 {[%emt 0:00:26]} 44. Rd6 $2 {[%emt 0:00:07]} (44. Re5 $18 {is more deadly.} Nxa4 45. Rd6) 44... Kf7 $16 {[%emt 0:00:22]} 45. Rd5 {[%emt 0:00:20]} Nge6 {[%emt 0:00:21]} 46. Rf5+ {[%emt 0:00:45]} Kxe7 {[%emt 0:00:10]} 47. Rxc5 {[%emt 0:02:29]} (47. Rd5 $16) 47... d2 $11 {[%emt 0:00:04]} 48. Rce5 {[%emt 0:00:04]} dxe1=Q+ {[%emt 0:00:06]} 49. Rxe1 {[%emt 0:00:03]} Rd8 {[%emt 0:01:36]} 50. b6 {[%emt 0:00:15]} Rb8 {[%emt 0:00:30]} 51. Re5 {[%emt 0:00:09]} Rxb6 {[%emt 0:00:24]} 52. Rxa5 {[%emt 0:00:01]} Rb2 {[%emt 0:01:08]} 53. h4 {[%emt 0:00:27]} Rc2 {[%emt 0:00:24]} 54. h5 {[%emt 0:00:38]} Kf6 {[%emt 0:00:14]} 55. Rd5 {[%emt 0:02:20]} Nc7 {[%emt 0:00:53]} 56. Rd8 {[%emt 0:01:02]} Ne6 {[%emt 0:00:25]} 57. Rg8 {[%emt 0:00:07]} Kf7 {[%emt 0:00:16]} 58. Rg4 {[%emt 0:00:06]} Rc5 {[%emt 0:00:15]} 59. Rh4 {[%emt 0:00:23]} Ng5 {[%emt 0:00:37]} 60. Kf2 {[%emt 0:00:31]} Rc2+ {[%emt 0:00:41]} 61. Ke3 {[%emt 0:00:10]} Rc3+ {[%emt 0:00:29]} 62. Kf4 {[%emt 0:00:24]} Kf6 {[%emt 0:00:03]} 63. h6 {[%emt 0:00:30]} Kg6 {[%emt 0:00:18]} 64. a5 {[%emt 0:01:41]} Ra3 {[%emt 0:00:37]} 65. g4 $2 {[%emt 0:01:49][%mdl 8192] [#]} (65. Rh1 $15) 65... Ra4+ $2 {[%emt 0:00:10]} (65... Kf6 $1 {mates} 66. Rh3 Rxh3 67. a6 Rf3#) 66. Kg3 {[%emt 0:00:43]} Rxa5 {[%emt 0:00:05]} 67. Rh5 {[%emt 0:00:24]} Ra3+ {[%emt 0:00:11]} 68. Kg2 {[%emt 0:00:21]} Nh7 {[%emt 0:00:11]} 69. Rh3 {[%emt 0:00:41]} Ra4 {[%emt 0:00:51]} 70. Kg3 {[%emt 0:00:20]} Nf6 {[%emt 0:00:14]} 71. Kf3 {[%emt 0:00:15]} Ra3+ {[%emt 0:00:38]} ({Much less strong is} 71... Rxg4 72. h7 Nxh7 73. Kxg4 $14) 72. Kg2 {[%emt 0:00:02]} Ra7 {[%emt 0:00:07]} 73. Rh1 {[%emt 0:01:21]} Kg5 {[%emt 0:00:19]} 74. Kf3 {[%emt 0:00:54]} Ra3+ {[%emt 0:00:11]} 75. Kg2 {[%emt 0:00:10]} Nh7 {[%emt 0:00:05]} 76. Rh3 {[%emt 0:00:08]} Ra4 {[%emt 0:00:05]} 77. Kf3 {[%emt 0:00:05]} Rf4+ {[%emt 0:00:05]} 78. Kg2 {[%emt 0:00:40]} Kxg4 {[%emt 0:00:24]} 79. Ra3 {[%emt 0:00:37]} Rf6 {[%emt 0:00:47]} 80. Ra7 {[%emt 0:00:05]} Rxh6 {[%emt 0:00:13]} 81. Ra4+ {[%emt 0:00:07]} Kg5 {[%emt 0:00:11]} 82. Ra5+ {[%emt 0:00:04]} Kg6 {[%emt 0:00:03]} 83. Ra6+ {[%emt 0:00:04]} Nf6 {[%emt 0:00:03]} 84. Kf3 {[%emt 0:00:13]} Rh4 {[%emt 0:00:06]} 85. Rb6 {[%emt 0:00:08]} Rd4 {[%emt 0:00:04]} 86. Ra6 {[%emt 0:00:04]} Kf5 {[%emt 0:00:06]} 87. Ra5+ {[%emt 0:00:04]} Nd5 {[%emt 0:00:04]} 88. Rc5 {[%emt 0:00:40]} Ke5 {[%emt 0:00:04]} 89. Ra5 {[%emt 0:00:03]} Rd3+ {[%emt 0:00:08]} 90. Kg4 {[%emt 0:00:21]} (90. Ke2 $11) 90... Rd1 {[%emt 0:00:06]} 91. Kf3 {[%emt 0:00:05]} Rf1+ {[%emt 0:00:04]} (91... Kd4 $15) 92. Ke2 $11 {[%emt 0:00:14]} Rf5 {[%emt 0:00:06]} 93. Kd3 {[%emt 0:00:14]} Rf3+ {[%emt 0:00:04]} 94. Ke2 {[%emt 0:00:04]} Rb3 {[%emt 0:00:09]} 95. Kf2 {[%emt 0:00:16]} Ke4 {[%emt 0:00:13]} 96. Ra4+ {[%emt 0:00:05]} Nb4 {[%emt 0:00:04]} 97. Kg2 {[%emt 0:00:11]} (97. Ra8 $11) 97... Kf4 {[%emt 0:00:04]} 98. Ra8 {[%emt 0:00:08]} Rb2+ {[%emt 0:00:10]} 99. Kh3 {[%emt 0:00:01]} Nd5 {[%emt 0:00:17]} 100. Rf8+ {[%emt 0:00:13]} Kg5 {[%emt 0:00:16]} (100... Ke3 $15) 101. Rg8+ {[%emt 0:00:05]} Kf5 {[%emt 0:00:03]} 102. Rf8+ {[%emt 0:00:15]} Nf6 {[%emt 0:00:22]} 103. Kg3 $1 {[%emt 0:00:09]} Kg5 {[%emt 0:00:06]} 104. Kf3 {[%emt 0:00:11]} Rb3+ {[%emt 0:00:03]} 105. Ke2 {[%emt 0:00:05]} Kf5 {[%emt 0:00:04]} 106. Kd2 {[%emt 0:00:05]} Ke5 {[%emt 0:00:06]} 107. Kc2 {[%emt 0:00:05]} Rf3 {[%emt 0:00:03]} 108. Kb2 {[%emt 0:00:22]} Kd4 {[%emt 0:00:04]} 109. Kc2 {[%emt 0:00:31]} Rc3+ {[%emt 0:00:14]} 110. Kb2 {[%emt 0:00:09]} Nd5 {[%emt 0:00:18]} 111. Rd8 {[%emt 0:00:02]} Rc5 {[%emt 0:00:08]} 112. Rd7 {[%emt 0:00:17]} Kd3 {[%emt 0:00:09]} 113. Rd8 {[%emt 0:00:42]} Rb5+ {[%emt 0:00:17]} 114. Kc1 $1 {[%emt 0:00:03]} Ke2 {[%emt 0:01:21]} 115. Kc2 {[%emt 0:02:17]} Ke3 {[%emt 0:00:06]} 116. Re8+ {[%emt 0:00:10]} Kd4 {[%emt 0:00:06]} 117. Rd8 {[%emt 0:00:05]} Rb6 {[%emt 0:00:08]} 118. Kc1 {[%emt 0:00:42]} Rh6 {[%emt 0:00:19]} 119. Kc2 {[%emt 0:00:10]} Rh3 {[%emt 0:00:17]} 120. Kb2 {[%emt 0:00:16]} Rd3 {[%emt 0:00:27]} 121. Kc2 {[%emt 0:00:22]} Rc3+ {[%emt 0:00:11]} 122. Kd2 {[%emt 0:00:06]} Rh3 {[%emt 0:00:23]} 123. Ke2 {[%emt 0:00:17]} Ra3 {[%emt 0:00:13]} 124. Kf2 {[%emt 0:00:04]} Ke5 {[%emt 0:00:11]} 125. Re8+ {[%emt 0:00:05]} Kf5 {[%emt 0:00:05]} 126. Rf8+ {[%emt 0:00:04]} Nf6 {[%emt 0:00:04]} 127. Ke2 {[%emt 0:00:04]} Ke5 {[%emt 0:00:05]} 128. Rh8 $1 {[%emt 0:00:21]} Ng4 {[%emt 0:00:19]} 129. Re8+ {[%emt 0:00:04]} Kf4 {[%emt 0:00:03]} 130. Rf8+ {[%emt 0:00:06]} Ke4 {[%emt 0:00:03]} 131. Re8+ {[%emt 0:00:04]} Ne5 {[%emt 0:00:05]} 1/2-1/2

[Event "7th Porticcio Open 2022"]
[Site "Porticcio"]
[Date "2022.07.06"]
[Round "7.3"]
[White "Venkatesh, M.R."]
[Black "Trent, Lawrence"]
[Result "1-0"]
[ECO "B13"]
[WhiteElo "2479"]
[BlackElo "2404"]
[Annotator "TA"]
[PlyCount "146"]
[EventDate "2022.07.02"]
[EventType "swiss"]
[EventCountry "FRA"]
[SourceTitle "playchess.com"]
[Source "ChessBase"]
[SourceQuality "1"]
[TimeControl "5400+30"]

{[%evp 17,146,23,35,21,21,14,8,9,18,9,66,61,70,62,60,61,72,47,49,42,96,100,112,105,111,80,131,131,140,115,115,115,115,115,115,116,137,138,203,194,231,231,223,228,207,177,181,205,261,261,261,256,295,243,410,403,386,223,206,200,216,167,202,197,188,133,179,159,179,141,173,174,196,204,359,346,396,406,492,433,382,101,64,0,1009,879,1011,970,29976,29977,29977,29978,29975,6840,6822,6815,6818,6780,6689,6665,6572,6540,6442,6442,6371,6274,6222,6222,5034,4643,1748,1741,29962,29961,29966,29967,29966,29966,29974,29975,29970,29974,29974,29975,29975,29976,29976,29977,29977,29978,5114]} 1. e4 {[%emt 0:00:05]} c6 {[%emt 0:01:01]} 2. d4 {[%emt 0:00:18]} d5 {[%emt 0:00:04]} 3. exd5 {[%emt 0:00:10]} cxd5 {[%emt 0:00:05]} 4. Bd3 {[%emt 0:00:18]} Nc6 {[%emt 0:00:23]} 5. c3 {[%emt 0:00:42]} Nf6 {[%emt 0:00:41]} 6. Bf4 {[%emt 0:00:26]} g6 {[%emt 0:00:10]} 7. Nf3 {[%emt 0:04:09]} Bg7 {[%emt 0:00:08]} 8. h3 {[%emt 0:13:42]} O-O {[%emt 0:00:45]} 9. Nbd2 {[%emt 0:01:14]} Nh5 {[%emt 0:04:16]} 10. Be3 {[%emt 0:09:59] B13: Caro-Kann: Exchange Variation and Panov-Botvinnik Attack.} Qd6 {[%emt 0:07:28]} 11. Nb3 {[%emt 0:04:26] [#]} b6 $146 {[%emt 0:07:14]} ({Predecessor:} 11... a5 12. a4 Nf4 13. Bf1 Re8 14. g3 Nh5 15. Bg2 b6 16. O-O f5 17. Ne5 Ba6 {1-0 (60) Bastian,M (2198)-Kuehn,K (1931) Saarlouis 2003}) 12. Qd2 {[%emt 0:06:12] The position is equal.} f5 {[%emt 0:01:59] White must now prevent ...f4.} 13. Bh6 {[%emt 0:03:12]} Nf6 {[%emt 0:06:14]} ({Black should play} 13... Bxh6 $11 14. Qxh6 e5) 14. Bxg7 $14 {[%emt 0:07:03]} Kxg7 {[%emt 0:00:02]} 15. Bb5 {[%emt 0:00:26]} Ne4 {[%emt 0:03:44]} 16. Qe2 {[%emt 0:00:12]} Nd8 {[%emt 0:05:56][%cal Bc6d8,Bd8e6,Be6g5][%mdl 32]} 17. O-O {[%emt 0:08:51]} Ne6 {[%emt 0:05:59]} 18. Ne5 {[%emt 0:20:27]} f4 {[%emt 0:04:34]} (18... Nf4 $14 19. Qe3 g5) 19. Nd2 $16 {[%emt 0:02:01]} N6g5 {[%emt 0:13:36]} 20. Rfe1 {[%emt 0:01:12]} Bf5 {[%emt 0:27:47]} 21. Bd3 {[%emt 0:09:19]} Rae8 {[%emt 0:04:36]} (21... Nxd2 $142 22. Qxd2 Bxd3 23. Qxd3 a5) 22. h4 {[%emt 0:00:40]} (22. Bxe4 Nxe4 23. a3 (23. Nxe4 dxe4 24. Kh2 g5 $14) 23... g5 $16) 22... Nxd2 {[%emt 0:02:45]} 23. Qxd2 {[%emt 0:00:18]} Bxd3 {[%emt 0:00:27]} 24. hxg5 {[%emt 0:01:35]} Ba6 {[%emt 0:00:06]} 25. Nf3 {[%emt 0:01:03]} Bc8 {[%emt 0:00:27]} 26. Re5 {[%emt 0:00:18]} Bg4 {[%emt 0:00:10]} 27. Nh2 {[%emt 0:00:21]} Bh5 {[%emt 0:02:20]} (27... Bd7 $16 28. Rae1 Rf7) 28. Rae1 $18 {[%emt 0:00:10]} Qd7 {[%emt 0:00:45]} 29. f3 {[%emt 0:00:25]} Rf5 {[%emt 0:00:14]} 30. Qe2 {[%emt 0:01:36]} Kf7 {[%emt 0:00:19]} 31. Nf1 {[%emt 0:00:18]} e6 {[%emt 0:01:05]} 32. Qd2 {[%emt 0:04:09]} Qd8 {[%emt 0:00:14]} 33. Rxf5+ {[%emt 0:00:34]} gxf5 {[%emt 0:00:01]} 34. Qxf4 {[%emt 0:00:10]} Rg8 {[%emt 0:00:01]} 35. Qe5 {[%emt 0:00:49]} Rg6 {[%emt 0:00:29]} (35... Re8 36. f4 Kg8) 36. f4 {[%emt 0:00:08]} (36. Ng3 Qxg5 37. Qc7+ Ke8 $16) 36... h6 {[%emt 0:00:05]} 37. gxh6 {[%emt 0:01:28]} (37. Ng3 $142 Bg4 38. Kf2) 37... Rxh6 {[%emt 0:01:28]} 38. Ng3 {[%emt 0:00:19]} Bg4 {[%emt 0:01:15]} 39. Kf2 {[%emt 0:00:02]} b5 {[%emt 0:00:28]} 40. a3 {[%emt 0:00:41]} a5 {[%emt 0:00:15]} 41. b3 {[%emt 0:00:46]} ({Better is} 41. Kg1 $18) 41... Qb6 {[%emt 0:00:49]} (41... Qc8 $16) 42. Nf1 {[%emt 0:00:36]} Qc6 {[%emt 0:00:27]} 43. Qe3 {[%emt 0:00:27]} Qd6 {[%emt 0:00:30]} 44. a4 {[%emt 0:00:32]} bxa4 {[%emt 0:00:19]} 45. bxa4 {[%emt 0:00:01]} Qa3 $2 {[%emt 0:00:28]} (45... Rh8 {is a better defense.} 46. Nd2 Qe7) 46. Rb1 {[%emt 0:00:12] Threatens to win with Rb7+.} Qa2+ {[%emt 0:00:49]} (46... Qxa4 $2 47. Rb7+ Ke8 48. Qe5 $18) 47. Nd2 {[%emt 0:00:02]} Rf6 {[%emt 0:00:26]} 48. Kg1 {[%emt 0:00:53]} Qxa4 {[%emt 0:00:28]} 49. Nf3 $2 {[%emt 0:01:27]} (49. Rb7+ $18 {and White stays clearly on top.} Kg6 50. Nb3) 49... Bxf3 $16 {[%emt 0:00:28]} 50. Rb7+ {[%emt 0:00:02]} ({White should try} 50. Qxf3 $14 Qd7 51. Rb8) 50... Ke8 $2 {[%emt 0:00:37][%mdl 8192] White leaves nothing to chance now.} (50... Kf8 $11 51. Qe5 (51. Qxf3 Qc2 $11) 51... Qd1+ 52. Kf2 Kg8) 51. Qxf3 $18 {[%emt 0:00:02][%mdl 4096] Endgame KQR-KQR} Qa1+ {[%emt 0:00:24] [#]} 52. Kf2 $1 {[%emt 0:00:11] Intending Qh5+ and mate.} Qa2+ {[%emt 0:00:27]} 53. Ke3 Rg6 {[%emt 0:00:00]} 54. Qh5 {[%emt 0:01:59]} ({Weaker is} 54. Rb8+ Kd7 55. Qh3 (55. Rb7+ $2 Kc8 $19) 55... Kc6 56. Rc8+ Kb5 $17) 54... Qxg2 {[%emt 0:00:37]} 55. Qh8+ {[%emt 0:00:36]} (55. Rb8+ $142 Kd7 56. Qh7+ Rg7 {[#]} 57. Qxg7+ $3 {[%mdl 512]} Qxg7 58. Rb7+ Kd6 59. Rxg7 Kc6 60. Re7) 55... Rg8 {[%emt 0:00:03]} 56. Rb8+ {[%emt 0:00:04]} Kf7 {[%emt 0:00:40]} 57. Qh7+ {[%emt 0:00:14]} Qg7 {[%emt 0:01:10]} 58. Rb7+ {[%emt 0:00:08]} Kf8 {[%emt 0:00:13]} 59. Rxg7 {[%emt 0:00:21]} Rxg7 {[%emt 0:00:02] KQ-KR} 60. Qh8+ {[%emt 0:00:10]} Kf7 {[%emt 0:00:06]} 61. Qc8 {[%emt 0:00:59]} a4 {[%emt 0:00:59]} 62. Qd7+ {[%emt 0:00:05]} Kf6 {[%emt 0:00:04]} 63. Qxa4 {[%emt 0:02:06]} Rg3+ {[%emt 0:00:04]} 64. Kd2 {[%emt 0:00:32] aiming for c4.} Rf3 {[%emt 0:00:59]} 65. Qe8 {[%emt 0:00:34] White mates.} Rxf4 {[%emt 0:00:09]} 66. Qf8+ {[%emt 0:00:29]} Kg6 {[%emt 0:00:01]} 67. Ke3 {[%emt 0:00:26]} Rg4 {[%emt 0:00:30]} 68. Kf3 {[%emt 0:00:09]} Re4 {[%emt 0:00:18]} 69. Qe7 {[%emt 0:00:22]} Kh6 {[%emt 0:01:36]} 70. Qf6+ {[%emt 0:00:45]} Kh7 {[%emt 0:00:07]} 71. Qg5 {[%emt 0:00:30]} Kh8 {[%emt 0:00:12]} 72. Qg6 {[%emt 0:00:24]} Re1 {[%emt 0:00:21]} 73. Qf6+ {[%emt 0:00:42]} Kg8 {[%emt 0:00:04] Weighted Error Value: White=0.24 (precise) /Black=0.33} 1-0

[Event "7th Porticcio Open 2022"]
[Site "Porticcio"]
[Date "2022.07.06"]
[Round "7.4"]
[White "Can, Isik"]
[Black "Droin, Augustin"]
[Result "1-0"]
[ECO "A06"]
[WhiteElo "2445"]
[BlackElo "2391"]
[Annotator "TA"]
[PlyCount "67"]
[EventDate "2022.07.02"]
[EventType "swiss"]
[EventCountry "FRA"]
[SourceTitle "playchess.com"]
[Source "ChessBase"]
[SourceQuality "1"]
[TimeControl "5400+30"]

{[%evp 9,67,30,16,25,54,56,52,50,53,50,61,57,81,43,51,39,44,47,56,45,74,68,51,69,61,86,84,72,139,122,145,144,185,169,160,118,134,75,145,66,66,57,68,54,61,65,343,359,930,897,1324,1303,1980,1980,29976,29976,29989,29981,29989,29990]} 1. Nf3 {[%emt 0:00:03]} d5 {[%emt 0:02:09]} 2. g3 {[%emt 0:00:10]} Bg4 {[%emt 0:01:02]} 3. Bg2 {[%emt 0:01:22]} Nd7 {[%emt 0:00:09][%cal Bb8d7,Bd7c5,Bc5e4][%mdl 32]} 4. c4 {[%emt 0:04:00]} e6 {[%emt 0:05:46]} 5. Qb3 {[%emt 0:00:57]} Nc5 {[%emt 0:00:49]} 6. Qe3 {[%emt 0:00:02] A07: Réti Opening: New York and Capablanca Systems.} Bxf3 {[%emt 0:05:23]} 7. Qxf3 {[%emt 0:05:14]} c6 {[%emt 0:00:07]} 8. d4 {[%emt 0:04:17] White is slightly better.} Ne4 {[%emt 0:00:45]} 9. O-O {[%emt 0:14:30] [#]} Ngf6 $146 {[%emt 0:04:58]} ({Predecessor:} 9... Nd6 10. Qb3 Nf6 11. cxd5 cxd5 12. Nc3 Be7 13. f3 O-O 14. e4 Nc4 15. Rd1 Na5 {½-½ (22) Bai,J (2572)-Brown,M (2524) Burlingame 2019}) 10. Qd3 {[%emt 0:17:49]} Be7 {[%emt 0:19:16]} 11. c5 {[%emt 0:01:49]} h6 {[%emt 0:00:07]} 12. f3 {[%emt 0:06:46]} Ng5 {[%emt 0:00:05]} 13. b4 {[%emt 0:00:26]} a5 {[%emt 0:05:38]} 14. b5 {[%emt 0:00:11]} e5 {[%emt 0:01:33]} 15. bxc6 {[%emt 0:03:02]} bxc6 {[%emt 0:01:34]} 16. dxe5 {[%emt 0:00:44]} Nd7 {[%emt 0:01:41]} 17. f4 {[%emt 0:01:10]} Ne6 {[%emt 0:05:54]} 18. Kh1 {[%emt 0:05:57]} Bxc5 {[%emt 0:01:06]} ({Black should play} 18... h5) 19. Nd2 {[%emt 0:04:10]} O-O {[%emt 0:05:38]} 20. e4 Bd4 {[%emt 0:03:17]} 21. Rb1 {[%emt 0:02:10]} Ndc5 {[%emt 0:00:02]} 22. Qf3 {[%emt 0:03:19]} Rc8 {[%emt 0:02:32]} 23. Ba3 {[%emt 0:02:31]} (23. exd5 $142 cxd5 24. Ba3 (24. Qxd5 Na4 $16)) 23... dxe4 {[%emt 0:00:35] [#]} (23... Nxe4 $142 24. Nxe4 dxe4 25. Qxe4 c5) 24. Nxe4 {[%emt 0:00:07]} ({White should try} 24. Qe2 $1 $16) 24... Nxe4 $14 {[%emt 0:00:02]} 25. Qxe4 {[%emt 0:00:05]} (25. Bxf8 $2 Nd2 26. Qd3 Nxb1 $19) 25... c5 $1 {[%emt 0:00:07]} 26. Rbe1 {[%emt 0:04:31] White is more active.} Re8 {[%emt 0:01:23]} 27. Bc1 {[%emt 0:04:23]} c4 $2 {[%emt 0:03:03][%mdl 8192] [#] This move loses the game for Black.} (27... Nf8 $14) 28. Rd1 $1 $18 {[%emt 0:00:32]} Ba7 $2 {[%emt 0:04:19]} (28... Rc7 29. f5 Nc5 30. Qxd4 Rd7) 29. Rxd8 {[%emt 0:00:12]} Rexd8 {[%emt 0:00:02]} 30. f5 {[%emt 0:00:15][%cal Bf4f5,Bf5f6][%mdl 32]} Nc5 {[%emt 0:00:06]} 31. Qg4 {[%emt 0:00:11] Threatening mate with Bxh6.} h5 {[%emt 0:01:01]} 32. Qxh5 {[%emt 0:00:44] White mates.} Nd3 {[%emt 0:00:57]} 33. e6 {[%emt 0:00:03]} Rc7 {[%emt 0:00:04]} 34. f6 {[%emt 0:00:17] Weighted Error Value: White=0.11 (very precise) /Black=0.59} 1-0